fUSD/lending_fUSD_20251206
["ID","MTS","AMOUNT","RATE_DAILY","PERIOD"]
[396597616,1765065085190,-500.0,0.00017534,2]
[396597617,1765065085199,-500.0,0.00017534,2]
[396597618,1765065085208,-675.96,0.00017534,2]
[396597619,1765065085217,-500.0,0.00017534,2]
[396597620,1765065085227,-500.0,0.00017534,2]
[396597621,1765065085236,-500.0,0.00017534,2]
[396597622,1765065085245,-2308.2,0.00017534,2]
[396597623,1765065085254,-1002.83,0.00017534,2]
[396597624,1765065085263,-500.0,0.00017534,2]
[396597625,1765065085272,-1878.33,0.00017534,2]
[396597626,1765065085281,-1973.13,0.00017534,2]
[396597627,1765065085290,-500.0,0.00017534,2]
[396597628,1765065085299,-500.0,0.00017534,2]
[396597629,1765065085308,-500.0,0.00017534,2]
[396597630,1765065085318,-823.65,0.00017534,2]
[396597631,1765065085327,-500.0,0.00017534,2]
[396597632,1765065085336,-500.0,0.00017534,2]
[396597633,1765065085345,-500.0,0.00017534,2]
[396597634,1765065085354,-500.0,0.00017534,2]
[396597635,1765065085363,-569.55,0.00017534,2]
[396597636,1765065085373,-500.0,0.00017534,2]
[396597637,1765065085383,-672.04,0.00017534,2]
[396597638,1765065085393,-300.0,0.00017534,2]
[396597639,1765065085402,-1935.84,0.00017534,2]
[396597640,1765065085412,-500.0,0.00017534,2]
[396597641,1765065085421,-670.39,0.00017534,2]
[396597642,1765065085430,-500.0,0.00017534,2]
[396597643,1765065085440,-500.0,0.00017534,2]
[396597644,1765065085449,-500.0,0.00017534,2]
[396597645,1765065085459,-500.0,0.00017534,2]
[396597646,1765065085469,-1843.85,0.00017534,2]
[396597647,1765065085478,-2386.35,0.00017534,2]
[396597648,1765065085487,-500.0,0.00017534,2]
[396597649,1765065085496,-500.0,0.00017534,2]
[396597650,1765065085506,-500.0,0.00017534,2]
[396597651,1765065085515,-500.0,0.00017534,2]
[396597652,1765065085524,-1942.49,0.00017534,2]
[396597653,1765065085534,-516.43,0.00017534,2]
[396597654,1765065085543,-2496.6,0.00017534,2]
[396597655,1765065085552,-4215.91,0.00017534,2]
[396597656,1765065085561,-2419.53,0.00017534,2]
[396597657,1765065085571,-500.0,0.00017534,2]
[396597658,1765065085580,-500.0,0.00017534,2]
[396597659,1765065085589,-2351.15,0.00017534,2]
[396597660,1765065085598,-610.17,0.00017534,2]
[396597661,1765065085608,-578.23,0.00017534,2]
[396597662,1765065085617,-500.0,0.00017534,2]
[396597663,1765065085626,-399.95719988,0.00017534,2]
[396597664,1765065085635,-2031.41,0.00017534,2]
[396597665,1765065085645,-505.59,0.00017534,2]
[396597666,1765065085654,-500.0,0.00017534,2]
[396597667,1765065085663,-500.0,0.00017534,2]
[396597668,1765065085673,-500.0,0.00017534,2]
[396597669,1765065085683,-500.0,0.00017534,2]
[396597670,1765065085694,-684.97,0.00017534,2]
[396597671,1765065085703,-500.0,0.00017534,2]
[396597672,1765065085713,-1027.61,0.00017534,2]
[396597673,1765065085722,-500.0,0.00017534,2]
[396597674,1765065085733,-1925.47,0.00017534,2]
[396597675,1765065085742,-500.0,0.00017534,2]
[396597676,1765065085751,-500.0,0.00017534,2]
[396597677,1765065085760,-1017.31,0.00017534,2]
[396597678,1765065085770,-500.0,0.00017534,2]
[396597679,1765065085780,-500.0,0.00017534,2]
[396597680,1765065085789,-500.0,0.00017534,2]
[396597681,1765065085799,-1817.28,0.00017534,2]
[396597682,1765065085808,-500.0,0.00017534,2]
[396597683,1765065085818,-510.66,0.00017534,2]
[396597684,1765065085829,-500.0,0.00017534,2]
[396597685,1765065085838,-500.0,0.00017534,2]
[396597686,1765065085850,-597.44,0.00017534,2]
[396597687,1765065085860,-500.0,0.00017534,2]
[396597688,1765065085870,-541.16,0.00017534,2]
[396597689,1765065085880,-500.0,0.00017534,2]
[396597690,1765065085890,-184.1,0.00017534,2]
[396597691,1765065085899,-1839.25,0.00017534,2]
[396597692,1765065085909,-500.0,0.00017534,2]
[396597693,1765065085919,-500.0,0.00017534,2]
[396597694,1765065085928,-2127.53,0.00017534,2]
[396597695,1765065085938,-2705.8,0.00017534,2]
[396597696,1765065085948,-2233.77,0.00017534,2]
[396597697,1765065085957,-239.28555959,0.00017534,2]
[396597698,1765065085967,-1509.87,0.00017534,2]
[396597699,1765065085976,-500.0,0.00017534,2]
[396597700,1765065085985,-2103.4,0.00017534,2]
[396597701,1765065085995,-500.0,0.00017534,2]
[396597702,1765065086004,-500.0,0.00017534,2]
[396597703,1765065086014,-1094.13,0.00017534,2]
[396597704,1765065086023,-604.35,0.00017534,2]
[396597705,1765065086034,-500.0,0.00017534,2]
[396597706,1765065086045,-500.0,0.00017534,2]
[396597707,1765065086058,-2198.18,0.00017534,2]
[396597708,1765065086067,-793.75,0.00017534,2]
[396597709,1765065086077,-500.0,0.00017534,2]
[396597710,1765065086087,-654.89,0.00017534,2]
[396597711,1765065086097,-500.0,0.00017534,2]
[396597712,1765065086107,-2052.9,0.00017534,2]
[396597713,1765065086117,-500.0,0.00017534,2]
[396597714,1765065086128,-500.0,0.00017534,2]
[396597715,1765065086138,-500.0,0.00017534,2]
[396597716,1765065086148,-500.0,0.00017534,2]
[396597717,1765065086157,-500.0,0.00017534,2]
[396597718,1765065086167,-1154.4,0.00017534,2]
[396597719,1765065086176,-1975.87,0.00017534,2]
[396597720,1765065086187,-607.1,0.00017534,2]
[396597721,1765065086196,-670.8,0.00017534,2]
[396597722,1765065086206,-556.33355681,0.00017534,2]
[396597723,1765065086215,-500.0,0.00017534,2]
[396597724,1765065086226,-500.0,0.00017534,2]
[396597725,1765065086237,-500.0,0.00017534,2]
[396597726,1765065086247,-500.0,0.00017534,2]
[396597727,1765065086258,-500.0,0.00017534,2]
[396597728,1765065086268,-500.0,0.00017534,2]
[396597729,1765065086278,-500.0,0.00017534,2]
[396597730,1765065086288,-500.0,0.00017534,2]
[396597731,1765065086298,-611.9,0.00017534,2]
[396597732,1765065086307,-502.96,0.00017534,2]
[396597733,1765065086317,-578.86,0.00017534,2]
[396597734,1765065086327,-1877.42,0.00017534,2]
[396597735,1765065086336,-500.0,0.00017534,2]
[396597736,1765065086346,-782.03,0.00017534,2]
[396597737,1765065086356,-2184.93,0.00017534,2]
[396597738,1765065086365,-1922.01,0.00017534,2]
[396597739,1765065086376,-554.58,0.00017534,2]
[396597740,1765065086385,-732.91,0.00017534,2]
[396597741,1765065086395,-500.0,0.00017534,2]
[396597742,1765065086405,-500.0,0.00017534,2]
[396597743,1765065086414,-500.0,0.00017534,2]
[396597744,1765065086424,-500.0,0.00017534,2]
[396597745,1765065086434,-500.0,0.00017534,2]
[396597746,1765065086443,-500.0,0.00017534,2]
[396597747,1765065086454,-1555.65,0.00017534,2]
[396597748,1765065086465,-1823.0,0.00017534,2]
[396597749,1765065086477,-2225.81,0.00017534,2]
[396597750,1765065086487,-1297.51,0.00017534,2]
[396597751,1765065086501,-500.0,0.00017534,2]
[396597752,1765065086517,-500.0,0.00017534,2]
[396597753,1765065086528,-1729.84,0.00017534,2]
[396597754,1765065086538,-335.18296353,0.00017534,2]
[396597755,1765065086547,-500.0,0.00017534,2]
[396597756,1765065086558,-1965.8,0.00017534,2]
[396597757,1765065086568,-506.16,0.00017534,2]
[396597758,1765065086579,-500.0,0.00017534,2]
[396597759,1765065086589,-2267.84,0.00017534,2]
[396597760,1765065086598,-500.0,0.00017534,2]
[396597761,1765065086608,-523.84,0.00017534,2]
[396597762,1765065086618,-500.0,0.00017534,2]
[396597763,1765065086628,-500.0,0.00017534,2]
[396597764,1765065086638,-500.0,0.00017534,2]
[396597765,1765065086650,-1091.22,0.00017534,2]
[396597766,1765065086660,-500.0,0.00017534,2]
[396597767,1765065086670,-671.31,0.00017534,2]
[396597768,1765065086681,-1454.08,0.00017534,2]
[396597769,1765065086693,-2310.03,0.00017534,2]
[396597770,1765065086704,-1905.67,0.00017534,2]
[396597771,1765065086713,-500.0,0.00017534,2]
[396597772,1765065086723,-500.0,0.00017534,2]
[396597773,1765065086732,-2051.6,0.00017534,2]
[396597774,1765065086742,-2465.22,0.00017534,2]
[396597775,1765065086752,-500.0,0.00017534,2]
[396597776,1765065086763,-7446.73,0.00017534,2]
[396597777,1765065086773,-1805.03,0.00017534,2]
[396597778,1765065086783,-500.0,0.00017534,2]
[396597779,1765065086793,-500.0,0.00017534,2]
[396597780,1765065086803,-500.0,0.00017534,2]
[396597781,1765065086812,-2049.81,0.00017534,2]
[396597782,1765065086822,-2488.97,0.00017534,2]
[396597783,1765065086832,-500.0,0.00017534,2]
[396597784,1765065086842,-2398.22,0.00017534,2]
[396597785,1765065086852,-500.0,0.00017534,2]
[396597786,1765065086861,-500.0,0.00017534,2]
[396597787,1765065086871,-1419.44,0.00017534,2]
[396597788,1765065086880,-2023.24,0.00017534,2]
[396597789,1765065086890,-500.0,0.00017534,2]
[396597790,1765065086899,-1686.66,0.00017534,2]
[396597791,1765065086909,-585.55,0.00017534,2]
[396597792,1765065086918,-875.36,0.00017534,2]
[396597793,1765065086930,-600.38437185,0.00017534,2]
[396597794,1765065086940,-2184.11,0.00017534,2]
[396597795,1765065086950,-1322.95,0.00017534,2]
[396597796,1765065086960,-576.75,0.00017534,2]
[396597797,1765065086970,-500.0,0.00017534,2]
[396597798,1765065086981,-4448.06,0.00017534,2]
[396597799,1765065086991,-2503.1,0.00017534,2]
[396597800,1765065087005,-500.0,0.00017534,2]
[396597801,1765065087015,-500.0,0.00017534,2]
[396597802,1765065087026,-500.0,0.00017534,2]
[396597803,1765065087037,-500.0,0.00017534,2]
[396597804,1765065087048,-246.78496956,0.00017534,2]
[396597805,1765065087058,-2010.37,0.00017534,2]
[396597806,1765065087068,-500.0,0.00017534,2]
[396597807,1765065087079,-500.0,0.00017534,2]
[396597808,1765065087089,-1000.0,0.00017534,2]
[396597809,1765065087098,-500.0,0.00017534,2]
[396597810,1765065087108,-500.0,0.00017534,2]
[396597811,1765065087118,-500.0,0.00017534,2]
[396597812,1765065087128,-623.12193884,0.00017534,2]
[396597813,1765065087139,-3569.48,0.00017534,2]
[396597814,1765065087148,-500.0,0.00017534,2]
[396597815,1765065087158,-500.0,0.00017534,2]
[396597816,1765065087168,-500.0,0.00017534,2]
[396597817,1765065087178,-500.0,0.00017534,2]
[396597818,1765065087189,-500.0,0.00017534,2]
[396597819,1765065087199,-3131.16,0.00017534,2]
[396597820,1765065087209,-500.0,0.00017534,2]
[396597821,1765065087218,-500.0,0.00017534,2]
[396597822,1765065087228,-500.0,0.00017534,2]
[396597823,1765065087238,-876.33,0.00017534,2]
[396597824,1765065087248,-2453.21,0.00017534,2]
[396597825,1765065087258,-500.0,0.00017534,2]
[396597826,1765065087267,-503.77028415,0.00017534,2]
[396597827,1765065087277,-1085.04,0.00017534,2]
[396597828,1765065087287,-1931.39,0.00017534,2]
[396597829,1765065087297,-500.0,0.00017534,2]
[396597830,1765065087307,-500.0,0.00017534,2]
[396597831,1765065087317,-500.0,0.00017534,2]
[396597832,1765065087328,-500.0,0.00017534,2]
[396597833,1765065087338,-2181.94,0.00017534,2]
[396597834,1765065087348,-2238.68,0.00017534,2]
[396597835,1765065087358,-500.0,0.00017534,2]
[396597836,1765065087368,-500.0,0.00017534,2]
[396597837,1765065087378,-500.0,0.00017534,2]
[396597838,1765065087388,-2290.17,0.00017534,2]
[396597839,1765065087397,-500.0,0.00017534,2]
[396597840,1765065087407,-500.0,0.00017534,2]
[396597841,1765065087417,-500.0,0.00017534,2]
[396597842,1765065087429,-604.97,0.00017534,2]
[396597843,1765065087439,-500.0,0.00017534,2]
[396597844,1765065087449,-500.0,0.00017534,2]
[396597845,1765065087460,-569.31,0.00017534,2]
[396597846,1765065087471,-500.0,0.00017534,2]
[396597847,1765065087480,-500.0,0.00017534,2]
[396597848,1765065087490,-2529.66,0.00017534,2]
[396597849,1765065087499,-558.68,0.00017534,2]
[396597850,1765065087509,-500.0,0.00017534,2]
[396597851,1765065087519,-2100.97,0.00017534,2]
[396597852,1765065087529,-550.83,0.00017534,2]
[396597853,1765065087539,-2059.52,0.00017534,2]
[396597854,1765065087548,-500.0,0.00017534,2]
[396597855,1765065087558,-500.0,0.00017534,2]
[396597856,1765065087568,-500.0,0.00017534,2]
[396597857,1765065087577,-500.0,0.00017534,2]
[396597858,1765065087588,-743.82,0.00017534,2]
[396597859,1765065087598,-500.0,0.00017534,2]
[396597860,1765065087608,-651.73,0.00017534,2]
[396597861,1765065087618,-500.0,0.00017534,2]
[396597862,1765065087628,-2148.24,0.00017534,2]
[396597863,1765065087638,-500.0,0.00017534,2]
[396597864,1765065087648,-501.39,0.00017534,2]
[396597865,1765065087658,-541.24,0.00017534,2]
[396597866,1765065087668,-536.6,0.00017534,2]
[396597867,1765065087679,-245.75631686,0.00017534,2]
[396597868,1765065087696,-500.0,0.00017534,2]
[396597869,1765065087707,-1668.4,0.00017534,2]
[396597870,1765065087717,-8015.71,0.00017534,2]
[396597871,1765065087728,-500.0,0.00017534,2]
[396597872,1765065087738,-2408.97,0.00017534,2]
[396597873,1765065087748,-1581.93,0.00017534,2]
[396597874,1765065087759,-2351.09,0.00017534,2]
[396597875,1765065087771,-1116.71,0.00017534,2]
[396597876,1765065087780,-500.0,0.00017534,2]
[396597877,1765065087790,-500.0,0.00017534,2]
[396597878,1765065087800,-2376.46,0.00017534,2]
[396597879,1765065087811,-500.0,0.00017534,2]
[396597880,1765065087822,-500.0,0.00017534,2]
[396597881,1765065087832,-635.91,0.00017534,2]
[396597882,1765065087843,-2038.16,0.00017534,2]
[396597883,1765065087852,-627.37,0.00017534,2]
[396597884,1765065087863,-575.52,0.00017534,2]
[396597885,1765065087873,-500.0,0.00017534,2]
[396597886,1765065087883,-500.0,0.00017534,2]
[396597887,1765065087893,-500.0,0.00017534,2]
[396597888,1765065087902,-500.0,0.00017534,2]
[396597889,1765065087912,-500.0,0.00017534,2]
[396597890,1765065087922,-1303.49,0.00017534,2]
[396597891,1765065087932,-2297.27,0.00017534,2]
[396597892,1765065087944,-521.13,0.00017534,2]
[396597893,1765065087954,-757.37,0.00017534,2]
[396597894,1765065087964,-1793.42,0.00017534,2]
[396597895,1765065087974,-500.0,0.00017534,2]
[396597896,1765065087985,-500.0,0.00017534,2]
[396597897,1765065087995,-1277.46,0.00017534,2]
[396597898,1765065088005,-2429.86,0.00017534,2]
[396597899,1765065088015,-359.98579753,0.00017534,2]
[396597900,1765065088025,-2403.68,0.00017534,2]
[396597901,1765065088035,-500.0,0.00017534,2]
[396597902,1765065088045,-500.0,0.00017534,2]
[396597903,1765065088055,-500.0,0.00017534,2]
[396597904,1765065088065,-605.23036831,0.00017534,2]
[396597905,1765065088075,-500.0,0.00017534,2]
[396597906,1765065088315,-2421.29,0.00017534,2]
[396597907,1765065088332,-500.0,0.00017534,2]
[396597908,1765065088342,-2075.27,0.00017534,2]
[396597909,1765065088352,-500.0,0.00017534,2]
[396597910,1765065088362,-500.0,0.00017534,2]
[396597911,1765065088372,-1167.37,0.00017534,2]
[396597912,1765065088382,-500.0,0.00017534,2]
[396597913,1765065088392,-500.0,0.00017534,2]
[396597914,1765065088402,-500.0,0.00017534,2]
[396597915,1765065088413,-541.92,0.00017534,2]
[396597916,1765065088424,-2348.53,0.00017534,2]
[396597917,1765065088434,-2252.48,0.00017534,2]
[396597918,1765065088444,-500.0,0.00017534,2]
[396597919,1765065088454,-500.0,0.00017534,2]
[396597920,1765065088464,-607.65,0.00017534,2]
[396597921,1765065088474,-636.79,0.00017534,2]
[396597922,1765065088484,-923.62,0.00017534,2]
[396597923,1765065088493,-2437.19,0.00017534,2]
[396597924,1765065088503,-500.0,0.00017534,2]
[396597925,1765065088512,-652.77,0.00017534,2]
[396597926,1765065088521,-556.83,0.00017534,2]
[396597927,1765065088531,-2556.04,0.00017534,2]
[396597928,1765065088540,-500.0,0.00017534,2]
[396597929,1765065088550,-500.0,0.00017534,2]
[396597930,1765065088559,-628.08,0.00017534,2]
[396597931,1765065088568,-500.0,0.00017534,2]
[396597932,1765065088578,-500.0,0.00017534,2]
[396597933,1765065088587,-500.0,0.00017534,2]
[396597934,1765065088597,-2331.93,0.00017534,2]
[396597935,1765065088607,-8739.62,0.00017534,2]
[396597936,1765065088616,-500.0,0.00017534,2]
[396597937,1765065088626,-924.99,0.00017534,2]
[396597938,1765065088635,-548.7,0.00017534,2]
[396597939,1765065088645,-500.0,0.00017534,2]
[396597940,1765065088655,-2150.28,0.00017534,2]
[396597941,1765065088664,-3296.61,0.00017534,2]
[396597942,1765065088674,-564.2,0.00017534,2]
[396597943,1765065088685,-500.0,0.00017534,2]
[396597944,1765065088697,-469.65471711,0.00017534,2]
[396597945,1765065088707,-500.0,0.00017534,2]
[396597946,1765065088716,-582.25,0.00017534,2]
[396597947,1765065088726,-744.03,0.00017534,2]
[396597948,1765065088735,-2478.43,0.00017534,2]
[396597949,1765065088745,-500.0,0.00017534,2]
[396597950,1765065088755,-610.11,0.00017534,2]
[396597951,1765065088765,-500.0,0.00017534,2]
[396597952,1765065088774,-500.0,0.00017534,2]
[396597953,1765065088783,-508.68,0.00017534,2]
[396597954,1765065088792,-500.0,0.00017534,2]
[396597955,1765065088801,-726.09,0.00017534,2]
[396597956,1765065088810,-675.5,0.00017534,2]
[396597957,1765065088820,-500.0,0.00017534,2]
[396597958,1765065088829,-2170.56,0.00017534,2]
[396597959,1765065088838,-1480.35,0.00017534,2]
[396597960,1765065088847,-500.0,0.00017534,2]
[396597961,1765065088856,-2298.7,0.00017534,2]
[396597962,1765065088866,-951.32,0.00017534,2]
[396597963,1765065088875,-500.0,0.00017534,2]
[396597964,1765065088884,-975.58,0.00017534,2]
[396597965,1765065088893,-865.35,0.00017534,2]
[396597966,1765065088903,-500.0,0.00017534,2]
[396597967,1765065088912,-1214.15,0.00017534,2]
[396597968,1765065088921,-1897.2,0.00017534,2]
[396597969,1765065088930,-500.0,0.00017534,2]
[396597970,1765065088939,-2229.31,0.00017534,2]
[396597971,1765065088948,-500.0,0.00017534,2]
[396597972,1765065088958,-500.0,0.00017534,2]
[396597973,1765065088967,-1611.79,0.00017534,2]
[396597974,1765065088976,-500.0,0.00017534,2]
[396597975,1765065088986,-2092.97,0.00017534,2]
[396597976,1765065088995,-3142.99,0.00017534,2]
[396597977,1765065089005,-2106.01,0.00017534,2]
[396597978,1765065089015,-500.0,0.00017534,2]
[396597979,1765065089024,-500.0,0.00017534,2]
[396597980,1765065089034,-500.0,0.00017534,2]
[396597981,1765065089044,-1423.16,0.00017534,2]
[396597982,1765065089054,-1915.73,0.00017534,2]
[396597983,1765065089065,-500.0,0.00017534,2]
[396597984,1765065089075,-554.54490941,0.00017534,2]
[396597985,1765065089085,-510.37,0.00017534,2]
[396597986,1765065089094,-965.85,0.00017534,2]
[396597987,1765065089103,-500.0,0.00017534,2]
[396597988,1765065089112,-676.8,0.00017534,2]
[396597989,1765065089123,-480.46773418,0.00017534,2]
[396597990,1765065089133,-1414.38,0.00017543,2]
[396597991,1765065089145,-235.0,0.00017555,2]
[396597992,1765065089155,-150.0,0.00017573,2]
[396597993,1765065089166,-354.0,0.00017593,2]
[396597994,1765065089175,-162.79,0.00017605,2]
[396597995,1765065089185,-500.0,0.00017606,2]
[396597996,1765065089195,-733.96469183,0.00017635,4]
[396597997,1765065089205,-956.34972234,0.0001764,2]
[396597998,1765065089214,-167.52,0.00017642,2]
[396597999,1765065089224,-406.42,0.00017643,2]
[396598000,1765065089234,-594.15409782,0.00017663,2]
[396598001,1765065089244,-500.0,0.00017671,2]
[396598002,1765065089255,-198.05136594,0.00017677,2]
[396598003,1765065089266,-162.1882173,0.000177,2]
[396598004,1765065089275,-235.0,0.00017705,2]
[396598005,1765065089287,-250.0,0.00017719,2]
[396598006,1765065089298,-162.82,0.00017723,2]
[396598007,1765065089308,-235.0,0.00017734,2]
[396598008,1765065089318,-500.0,0.00017743,2]
[396598009,1765065089329,-354.0,0.00017748,2]
[396598010,1765065089338,-447.0,0.00017773,2]
[396598011,1765065089347,-198.05136594,0.00017802,2]
[396598012,1765065089357,-502.19819736,0.00017808,2]
[396598013,1765065089367,-500.0,0.00017808,2]
[396598014,1765065089376,-500.0,0.00017808,2]
[396598015,1765065089385,-500.0,0.00017808,2]
[396598016,1765065089396,-500.0,0.00017808,2]
[396598017,1765065089406,-1861.69,0.00017808,2]
[396598018,1765065089416,-500.0,0.00017808,2]
[396598019,1765065089427,-464.42366098,0.00017808,2]
[396598020,1765065089436,-500.0,0.00017808,2]
[396598021,1765065089446,-500.0,0.00017808,2]
[396598022,1765065089456,-2057.97,0.00017808,2]
[396598023,1765065089466,-409.6319639,0.00017808,2]
[396598024,1765065089475,-500.0,0.00017808,2]
[396598025,1765065089484,-2161.94,0.00017808,2]
[396598026,1765065089494,-2039.18,0.00017808,2]
[396598027,1765065089504,-204.58067648,0.00017808,2]
[396598028,1765065089513,-500.0,0.00017808,2]
[396598029,1765065089523,-550.03,0.00017808,2]
[396598030,1765065089532,-500.0,0.00017808,2]
[396598031,1765065089541,-2162.27,0.00017808,2]
[396598032,1765065089551,-1761.71,0.00017808,2]
[396598033,1765065089561,-354.57729188,0.00017808,2]
[396598034,1765065089570,-500.0,0.00017808,2]
[396598035,1765065089579,-500.0,0.00017808,2]
[396598036,1765065089589,-2125.61,0.00017808,2]
[396598037,1765065089599,-500.0,0.00017808,2]
[396598038,1765065089610,-2416.18,0.00017808,2]
[396598039,1765065089619,-500.0,0.00017808,2]
[396598040,1765065089630,-500.0,0.00017808,2]
[396598041,1765065089640,-500.0,0.00017808,2]
[396598042,1765065089649,-2356.57,0.00017808,2]
[396598043,1765065089659,-500.0,0.00017808,2]
[396598044,1765065089670,-2016.55,0.00017808,2]
[396598045,1765065089680,-500.0,0.00017808,2]
[396598046,1765065089696,-500.0,0.00017808,2]
[396598047,1765065089707,-500.0,0.00017808,2]
[396598048,1765065089716,-515.76,0.00017808,2]
[396598049,1765065089725,-500.0,0.00017808,2]
[396598050,1765065089734,-500.0,0.00017808,2]
[396598051,1765065089743,-500.0,0.00017808,2]
[396598052,1765065089752,-2310.29,0.00017808,2]
[396598053,1765065089762,-504.32496899,0.00017808,2]
[396598054,1765065089772,-500.0,0.00017808,2]
[396598055,1765065089781,-500.0,0.00017808,2]
[396598056,1765065089790,-500.0,0.00017808,2]
[396598057,1765065089800,-500.0,0.00017808,2]
[396598058,1765065089809,-235.80980953,0.00017808,2]
[396598059,1765065089818,-500.0,0.00017808,2]
[396598060,1765065089827,-311.60926476,0.00017808,2]
[396598061,1765065089837,-500.0,0.00017808,2]
[396598062,1765065089846,-1700.08,0.00017808,2]
[396598063,1765065089855,-610.86534174,0.00017808,2]
[396598064,1765065089864,-500.0,0.00017808,2]
[396598065,1765065089874,-803.67,0.00017808,2]
[396598066,1765065089883,-500.0,0.00017808,2]
[396598067,1765065089892,-500.0,0.00017808,2]
[396598068,1765065089901,-2249.5,0.00017808,2]
[396598069,1765065089910,-500.0,0.00017808,2]
[396598070,1765065089920,-500.0,0.00017808,2]
[396598071,1765065089929,-797.7,0.00017808,2]
[396598072,1765065089939,-500.0,0.00017808,2]
[396598073,1765065089948,-500.0,0.00017808,2]
[396598074,1765065089957,-500.0,0.00017808,2]
[396598075,1765065089966,-557.33,0.00017808,2]
[396598076,1765065089975,-500.0,0.00017808,2]
[396598077,1765065089985,-500.0,0.00017808,2]
[396598078,1765065089994,-500.0,0.00017808,2]
[396598079,1765065090003,-500.0,0.00017808,2]
[396598080,1765065090012,-500.0,0.00017808,2]
[396598081,1765065090021,-802.36,0.00017808,2]
[396598082,1765065090030,-1994.56,0.00017808,2]
[396598083,1765065090039,-500.0,0.00017808,2]
[396598084,1765065090048,-500.0,0.00017808,2]
[396598085,1765065090058,-2336.73,0.00017808,2]
[396598086,1765065090067,-2191.97,0.00017808,2]
[396598087,1765065090076,-283.73953495,0.00017808,2]
[396598088,1765065090085,-500.0,0.00017808,2]
[396598089,1765065090094,-500.0,0.00017808,2]
[396598090,1765065090103,-500.0,0.00017808,2]
[396598091,1765065090112,-500.0,0.00017808,2]
[396598092,1765065090121,-500.0,0.00017808,2]
[396598093,1765065090130,-1612.61,0.00017808,2]
[396598094,1765065090140,-500.0,0.00017808,2]
[396598095,1765065090149,-500.0,0.00017808,2]
[396598096,1765065090158,-500.0,0.00017808,2]
[396598097,1765065090167,-429.88776597,0.00017808,2]
[396598098,1765065090176,-216.04092996,0.00017808,2]
[396598099,1765065090186,-2027.37,0.00017808,2]
[396598100,1765065090196,-500.0,0.00017808,2]
[396598101,1765065090205,-500.0,0.00017808,2]
[396598102,1765065090215,-500.0,0.00017808,2]
[396598103,1765065090223,-500.0,0.00017808,2]
[396598104,1765065090234,-269.15275283,0.00017808,2]
[396598105,1765065090243,-500.0,0.00017808,2]
[396598106,1765065090253,-500.0,0.00017808,2]
[396598107,1765065090262,-500.0,0.00017808,2]
[396598108,1765065090271,-500.0,0.00017808,2]
[396598109,1765065090280,-500.0,0.00017808,2]
[396598110,1765065090289,-500.0,0.00017808,2]
[396598111,1765065090298,-500.0,0.00017808,2]
[396598112,1765065090307,-500.0,0.00017808,2]
[396598113,1765065090316,-537.56,0.00017808,2]
[396598114,1765065090325,-500.0,0.00017808,2]
[396598115,1765065090335,-2030.02,0.00017808,2]